[Event "10th Sharjah Cup Women 2020"]
[Site "Sharjah"]
[Date "2020.01.11"]
[Round "8.12"]
[White "Jalaluldeen, Kareen Kamal J."]
[Black "Kubicka, Anna"]
[Result "0-1"]
[ECO "A42"]
[WhiteElo "1784"]
[BlackElo "2258"]
[Annotator "NA"]
[PlyCount "82"]
[EventDate "2020.01.04"]
[EventType "swiss"]
[EventCountry "UAE"]
[SourceTitle "playchess.com"]
[Source "ChessBase"]
[SourceQuality "1"]
[TimeControl "5400+30"]

1. d4 {[%emt 0:00:00]} g6 {[%emt 0:00:00]} 2. c4 {[%emt 0:00:00]} Bg7 {[%emt 0:00:00]} 3. Nc3 {[%emt 0:00:03]} d6 {[%emt 0:00:00]} 4. e4 {[%emt 0:00:15]} e5 {[%emt 0:00:35]} 5. Nf3 {[%emt 0:05:14]} Nc6 {[%emt 0:00:16]} 6. d5 {[%emt 0:01:53]} Nce7 {[%emt 0:00:11]} 7. Bd3 {[%emt 0:08:10] A42: Modern Defence: Averbakh Variation} (7. Be2 Nf6 8. O-O O-O 9. Ne1 Ne8 10. Be3 f5 11. f3 f4 12. Bf2 g5 13. c5 h5 14. a4 Rf6 15. a5 Rg6 16. Nb5 a6 17. cxd6 Nxd6 18. Nxd6 cxd6 19. Bb6 Qe8 20. Rc1 g4 21. Kh1 g3 22. Rc7 gxh2 23. Rf2 {1-0 (91) Ragger,M (2687)-Andriasian,Z (2594) Minsk 2015}) 7... f5 {[%emt 0:00:14]} 8. exf5 {[%emt 0:00:40]} gxf5 {[%emt 0:03:17]} 9. Ng5 {[%emt 0:06:36]} Nf6 {[%emt 0:00:44]} 10. Be2 {[%emt 0:02:11]} O-O {[%emt 0:02:16]} 11. O-O {[%emt 0:05:11]} Ng6 $146 {[%emt 0:02:02]} ({Predecessor:} 11... c6 12. Qb3 h6 13. Nf3 Kh8 14. Rd1 Ng6 15. Ne1 Qe7 16. a4 f4 17. Nf3 e4 18. Ne1 Ng4 19. f3 Qh4 20. fxg4 f3 {0-1 (20) Pastrana Alvarez,S (1881)-Alonso Gonzalez,C ICCF email 2007}) 12. b4 {[%emt 0:03:32]} Qe7 {[%emt 0:04:57]} 13. c5 {[%emt 0:11:55]} h6 {[%emt 0:03:10]} 14. cxd6 {[%emt 0:05:01]} Qxd6 {[%emt 0:02:14]} 15. Nf3 {[%emt 0:00:13]} a6 {[%emt 0:02:20]} 16. Qb3 {[%emt 0:02:03]} e4 {[%emt 0:00:00]} 17. Nd4 {[%emt 0:06:33]} Ng4 {[%emt 0:16:34]} 18. Bxg4 {[%emt 0:01:37]} Bxd4 {[%emt 0:00:06]} 19. Be2 {[%emt 0:03:04]} Kh7 {[%emt 0:00:33]} 20. Be3 {[%emt 0:02:06]} Bxe3 $11 {[%emt 0:07:44]} (20... Be5 $5 {[%cal Re5h2]} 21. Bc5 Qf6 22. Bxf8 Nf4 $15) 21. fxe3 {[%emt 0:00:01]} Bd7 {[%emt 0:00:20]} 22. Bh5 {[%emt 0:07:07]} Ne5 {[%emt 0:03:06]} 23. a4 {[%emt 0:02:42]} Rg8 {[%emt 0:00:49]} 24. Ne2 {[%emt 0:00:54]} Nd3 {[%emt 0:01:38]} 25. Nf4 {[%emt 0:04:07]} Qxb4 {[%emt 0:10:06]} 26. Qc2 {[%emt 0:05:56]} Nxf4 {[%emt 0:06:33]} 27. Rxf4 {[%emt 0:00:43]} Qb6 {[%emt 0:00:53]} 28. Qc1 {[%emt 0:02:45]} Rg5 {[%emt 0:01:12]} 29. Bd1 {[%emt 0:02:00]} Rag8 {[%emt 0:01:33]} 30. Ra2 {[%emt 0:00:39]} Qa5 {[%emt 0:02:46]} 31. Rd2 {[%emt 0:06:05]} R8g7 {[%emt 0:00:28]} 32. Rff2 {[%emt 0:01:19]} Bxa4 {[%emt 0:01:30]} 33. Qa1 {[%emt 0:00:53]} b5 {[%emt 0:00:19]} 34. Bxa4 {[%emt 0:00:09]} bxa4 {[%emt 0:00:31]} 35. d6 {[%emt 0:01:28]} cxd6 {[%emt 0:00:19]} 36. Rxd6 {[%emt 0:00:15]} Qc5 {[%emt 0:00:24]} 37. Rd4 {[%emt 0:00:48]} a3 {[%emt 0:00:35]} 38. Qe1 {[%emt 0:01:40]} Qb6 {[%emt 0:10:22]} 39. Ra4 {[%emt 0:01:10]} Qg6 {[%emt 0:01:05]} 40. Qe2 {[%emt 0:00:30]} Qc6 {[%emt 0:00:50]} 41. Qc2 {[%emt 0:01:05]} Rxg2+ {[%emt 0:00:19]} 0-1

[Event "10th Sharjah Cup Women 2020"]
[Site "Sharjah"]
[Date "2020.01.11"]
[Round "8.13"]
[White "Bykova, Anastasia"]
[Black "Kyrkjebo, Hanna B."]
[Result "1/2-1/2"]
[ECO "E05"]
[WhiteElo "2247"]
[BlackElo "1963"]
[Annotator "ChessBase"]
[PlyCount "144"]
[EventDate "2020.01.04"]
[EventType "swiss"]
[EventCountry "UAE"]
[SourceTitle "playchess.com"]
[Source "ChessBase"]
[SourceQuality "1"]
[TimeControl "5400+30"]

1. d4 {[%emt 0:00:00]} Nf6 {[%emt 0:01:56]} 2. c4 {[%emt 0:00:00]} e6 {[%emt 0:00:05]} 3. g3 {[%emt 0:00:00]} d5 {[%emt 0:00:28]} 4. Nf3 {[%emt 0:00:00]} Be7 {[%emt 0:00:05]} 5. Bg2 {[%emt 0:00:00]} dxc4 {[%emt 0:03:13]} 6. O-O {[%emt 0:00:08]} O-O {[%emt 0:00:11]} 7. Qc2 {[%emt 0:00:10]} a6 {[%emt 0:01:13]} 8. a4 {[%emt 0:00:10]} Bd7 {[%emt 0:01:06]} 9. Qxc4 {[%emt 0:10:16]} Bc6 {[%emt 0:02:25]} 10. Bf4 {[%emt 0:00:17]} Nbd7 {[%emt 0:02:35]} 11. Nc3 {[%emt 0:06:05]} Bd6 {[%emt 0:06:55]} 12. Bxd6 {[%emt 0:05:11]} cxd6 {[%emt 0:00:24]} 13. Qb4 {[%emt 0:00:05]} Nb6 {[%emt 0:03:04]} 14. a5 {[%emt 0:02:11]} Nbd5 {[%emt 0:01:33]} 15. Qa3 {[%emt 0:09:13]} Rc8 {[%emt 0:17:07]} 16. Rfc1 {[%emt 0:07:18]} Re8 {[%emt 0:08:32]} 17. e3 {[%emt 0:17:22]} Nc7 {[%emt 0:08:29]} 18. Nd2 {[%emt 0:04:19]} Bxg2 {[%emt 0:01:55]} 19. Kxg2 {[%emt 0:00:03]} d5 {[%emt 0:03:43]} 20. Nb3 {[%emt 0:05:45]} Nd7 {[%emt 0:02:04]} 21. Qb4 {[%emt 0:01:10]} Rb8 {[%emt 0:16:05]} 22. Na4 {[%emt 0:06:54]} Nb5 {[%emt 0:00:58]} 23. Nbc5 {[%emt 0:00:32]} Nxc5 {[%emt 0:03:14]} 24. Rxc5 {[%emt 0:00:11]} Rc8 {[%emt 0:01:21]} 25. Rac1 {[%emt 0:04:35]} Rxc5 {[%emt 0:00:47]} 26. Rxc5 {[%emt 0:00:07]} Qe7 {[%emt 0:01:56]} 27. Rxb5 {[%emt 0:01:50]} axb5 {[%emt 0:00:22]} 28. Qxb5 {[%emt 0:00:04]} g6 {[%emt 0:04:31]} 29. Nc5 {[%emt 0:00:12]} Rb8 {[%emt 0:01:39]} 30. a6 {[%emt 0:03:45]} b6 {[%emt 0:03:27]} 31. Nd7 {[%emt 0:00:51]} Rd8 {[%emt 0:00:47]} 32. Nxb6 {[%emt 0:07:23]} Qa7 {[%emt 0:01:03]} 33. Na4 {[%emt 0:00:39]} Rb8 {[%emt 0:00:47]} 34. Qa5 {[%emt 0:01:22]} Kg7 {[%emt 0:01:19]} 35. b4 {[%emt 0:00:55]} e5 {[%emt 0:01:03]} 36. Qxd5 {[%emt 0:04:45]} exd4 {[%emt 0:00:34]} 37. exd4 {[%emt 0:00:29]} Rxb4 {[%emt 0:00:34]} 38. Nc5 {[%emt 0:00:20]} Rb8 {[%emt 0:00:43]} 39. Qe5+ {[%emt 0:00:53]} Kg8 40. Nd7 {[%emt 0:01:08]} Qa8+ {[%emt 0:00:42]} 41. d5 {[%emt 0:00:13]} Rd8 {[%emt 0:00:57]} 42. Nf6+ {[%emt 0:00:04]} Kf8 {[%emt 0:00:24]} 43. Nxh7+ {[%emt 0:00:05]} Kg8 {[%emt 0:00:05]} 44. Nf6+ {[%emt 0:00:03]} Kf8 {[%emt 0:00:05]} 45. Nd7+ {[%emt 0:04:02]} Kg8 {[%emt 0:00:12]} 46. Qd6 {[%emt 0:00:28]} Qc8 {[%emt 0:00:41]} 47. a7 {[%emt 0:00:07]} Rxd7 {[%emt 0:00:33]} 48. Qxd7 {[%emt 0:00:22]} Qxd7 {[%emt 0:00:10]} 49. a8=Q+ {[%emt 0:00:04]} Kg7 {[%emt 0:00:08]} 50. Qc6 {[%emt 0:00:07]} Qf5 {[%emt 0:01:20]} 51. d6 {[%emt 0:00:03]} Qe5 {[%emt 0:00:25]} 52. d7 {[%emt 0:00:15]} Qd4 {[%emt 0:00:16]} 53. h3 {[%emt 0:00:50]} Kh7 {[%emt 0:00:48]} 54. Qb7 {[%emt 0:02:54]} Kg7 {[%emt 0:00:20]} 55. Qc6 {[%emt 0:00:15]} Kh7 {[%emt 0:00:22]} 56. Qc7 {[%emt 0:00:27]} Qd5+ {[%emt 0:00:19]} 57. Kh2 {[%emt 0:00:13]} Qd2 {[%emt 0:00:39]} 58. Qa7 {[%emt 0:00:05]} Kg7 {[%emt 0:00:39]} 59. h4 {[%emt 0:00:32]} Qd1 {[%emt 0:01:39]} 60. Kg2 {[%emt 0:01:22]} Qd5+ {[%emt 0:00:12]} 61. Kg1 {[%emt 0:00:27]} Qd1+ {[%emt 0:00:05]} 62. Kh2 {[%emt 0:00:06]} Qd2 {[%emt 0:00:18]} 63. Kh3 {[%emt 0:00:40]} Qd5 {[%emt 0:00:54]} 64. f3 {[%emt 0:00:51]} Qd1 {[%emt 0:00:58]} 65. Qc7 {[%emt 0:00:38]} Qxf3 {[%emt 0:00:29]} 66. Qe5+ {[%emt 0:00:18]} f6 {[%emt 0:00:27]} 67. Qe7+ {[%emt 0:00:08]} Kh6 {[%emt 0:00:12]} 68. Qf8+ {[%emt 0:00:38]} Kh7 {[%emt 0:00:10]} 69. Qd6 {[%emt 0:00:59]} Qf1+ {[%emt 0:00:30]} 70. Kh2 {[%emt 0:00:08]} Qf2+ {[%emt 0:00:08]} 71. Kh3 {[%emt 0:00:05]} Qf1+ {[%emt 0:00:09]} 72. Kh2 {[%emt 0:00:03]} Qf2+ {[%emt 0:00:10]} 1/2-1/2

[Event "10th Sharjah Cup Women 2020"]
[Site "Sharjah"]
[Date "2020.01.11"]
[Round "8.14"]
[White "Asatryan, Sona"]
[Black "Greibrokk, Ingrid"]
[Result "1-0"]
[ECO "B52"]
[WhiteElo "2085"]
[BlackElo "1855"]
[Annotator "NA"]
[PlyCount "53"]
[EventDate "2020.01.04"]
[EventType "swiss"]
[EventCountry "UAE"]
[SourceTitle "playchess.com"]
[Source "ChessBase"]
[SourceQuality "1"]
[TimeControl "5400+30"]

1. e4 {[%emt 0:00:00]} c5 {[%emt 0:01:10]} 2. Nf3 {[%emt 0:00:00]} d6 {[%emt 0:00:07]} 3. Bb5+ {[%emt 0:00:01]} Bd7 {[%emt 0:00:14]} 4. Bxd7+ {[%emt 0:00:06]} Qxd7 {[%emt 0:00:05]} 5. O-O {[%emt 0:00:06]} Nc6 {[%emt 0:00:03]} 6. c3 {[%emt 0:00:08]} g6 {[%emt 0:00:40]} 7. d4 {[%emt 0:00:32]} cxd4 {[%emt 0:00:07]} 8. cxd4 {[%emt 0:00:07]} Bg7 {[%emt 0:00:09]} 9. Nc3 {[%emt 0:00:55]} Nf6 {[%emt 0:08:34]} 10. Bf4 {[%emt 0:10:46]} Qg4 {[%emt 0:09:12]} 11. Qd2 {[%emt 0:02:58]} g5 {[%emt 0:20:46]} 12. Bxg5 {[%emt 0:05:37]} Nxe4 $16 {[%emt 0:04:24]} 13. Nxe4 {[%emt 0:12:16]} Qxe4 {[%emt 0:00:09]} 14. d5 {[%emt 0:01:05]} Ne5 {[%emt 0:00:06]} 15. Nxe5 {[%emt 0:00:24]} Bxe5 {[%emt 0:00:16]} 16. Rae1 {[%emt 0:01:53]} Qg6 {[%emt 0:04:05]} 17. Bxe7 {[%emt 0:11:17]} Kxe7 {[%emt 0:01:11]} 18. f4 {[%emt 0:00:23]} f6 {[%emt 0:00:45]} 19. fxe5 {[%emt 0:00:40]} fxe5 {[%emt 0:00:01]} 20. Qb4 {[%emt 0:00:14]} Rab8 {[%emt 0:03:53]} 21. Rxe5+ {[%emt 0:00:18]} Kd7 {[%emt 0:00:36]} 22. Re6 {[%emt 0:00:21]} Qc2 {[%emt 0:01:13]} 23. Qxd6+ {[%emt 0:00:28]} Kc8 {[%emt 0:00:05]} 24. Rf8+ {[%emt 0:00:21]} Rxf8 {[%emt 0:00:07]} 25. Qxf8+ {[%emt 0:00:04]} Kc7 {[%emt 0:00:05]} 26. Qf7+ {[%emt 0:00:13]} Kc8 {[%emt 0:00:06]} 27. Re8# {[%emt 0:00:05]} 1-0

[Event "10th Sharjah Cup Women 2020"]
[Site "Sharjah"]
[Date "2020.01.11"]
[Round "8.15"]
[White "Samaganova, Alexandra"]
[Black "Alsabbagh Eman"]
[Result "1-0"]
[ECO "A36"]
[WhiteElo "2008"]
[BlackElo "1053"]
[Annotator "NA"]
[PlyCount "65"]
[EventDate "2020.01.04"]
[EventType "swiss"]
[EventCountry "UAE"]
[SourceTitle "playchess.com"]
[Source "ChessBase"]
[SourceQuality "1"]
[TimeControl "5400+30"]

1. c4 {[%emt 0:00:00]} c5 {[%emt 0:00:14]} 2. Nc3 {[%emt 0:00:00]} Nc6 {[%emt 0:00:11]} 3. g3 {[%emt 0:00:20]} Nf6 {[%emt 0:03:35]} 4. Bg2 {[%emt 0:00:40]} e6 $11 {[%emt 0:01:57]} 5. Nf3 {[%emt 0:06:33]} d5 {[%emt 0:05:00]} 6. cxd5 {[%emt 0:00:55]} exd5 {[%emt 0:00:33]} 7. d4 {[%emt 0:02:48]} h6 {[%emt 0:02:29]} 8. O-O {[%emt 0:02:21]} Bd6 {[%emt 0:04:45]} 9. Nb5 {[%emt 0:03:43]} Be7 {[%emt 0:07:35]} 10. Bf4 {[%emt 0:18:50]} O-O {[%emt 0:03:37]} 11. dxc5 {[%emt 0:07:05]} Bxc5 {[%emt 0:02:51]} 12. Rc1 {[%emt 0:00:35]} Bb6 {[%emt 0:06:02]} 13. Nbd4 {[%emt 0:14:18]} Bd7 {[%emt 0:05:59]} 14. Nxc6 {[%emt 0:04:14]} Bxc6 {[%emt 0:02:21]} 15. Ne5 {[%emt 0:04:46]} Bb5 {[%emt 0:13:03]} 16. a4 {[%emt 0:10:11]} Bd7 {[%emt 0:05:54]} 17. b4 {[%emt 0:03:33]} a5 {[%emt 0:03:43]} 18. b5 {[%emt 0:00:24]} Be6 {[%emt 0:03:47]} 19. Qd3 {[%emt 0:01:50]} Bc7 {[%emt 0:05:08]} 20. Qd4 {[%emt 0:05:01]} Re8 {[%emt 0:03:07]} 21. Nxf7 {[%emt 0:03:07]} Bxf7 {[%emt 0:02:16]} 22. Bxc7 {[%emt 0:00:11]} Qd7 {[%emt 0:00:47]} 23. e3 {[%emt 0:02:53]} Rac8 {[%emt 0:02:17]} 24. Bxa5 {[%emt 0:00:40]} Rxc1 {[%emt 0:01:19]} 25. Rxc1 {[%emt 0:00:02]} Rc8 {[%emt 0:00:34]} 26. Rxc8+ {[%emt 0:01:15]} Qxc8 {[%emt 0:00:03]} 27. Bc3 {[%emt 0:00:07]} Bg6 {[%emt 0:02:54]} 28. Bxd5+ {[%emt 0:00:17]} Kf8 {[%emt 0:01:41]} 29. Bb4+ {[%emt 0:00:34]} Ke8 {[%emt 0:00:34]} 30. Qe5+ {[%emt 0:00:07]} Qe6 {[%emt 0:01:52]} 31. Qxe6+ {[%emt 0:00:10]} Kd8 {[%emt 0:00:08]} 32. Ba5+ {[%emt 0:00:17]} b6 {[%emt 0:00:15]} 33. Bxb6# {[%emt 0:00:08]} 1-0

[Event "10th Sharjah Cup Women 2020"]
[Site "Sharjah"]
[Date "2020.01.11"]
[Round "8.16"]
[White "Amal Fadel S M Alshamsi"]
[Black "Kiolbasa, Oliwia"]
[Result "0-1"]
[ECO "B28"]
[WhiteElo "1403"]
[BlackElo "2196"]
[Annotator "ChessBase"]
[PlyCount "72"]
[EventDate "2020.01.04"]
[EventType "swiss"]
[EventCountry "UAE"]
[SourceTitle "playchess.com"]
[Source "ChessBase"]
[SourceQuality "1"]
[TimeControl "5400+30"]

1. e4 {[%emt 0:00:00]} c5 {[%emt 0:00:00]} 2. Nf3 {[%emt 0:00:00]} a6 {[%emt 0:00:00]} 3. d4 {[%emt 0:00:00]} cxd4 {[%emt 0:00:00]} 4. Nxd4 {[%emt 0:00:01]} Nf6 {[%emt 0:00:04]} 5. Nc3 {[%emt 0:00:38]} e5 {[%emt 0:00:22]} 6. Nf3 {[%emt 0:07:54]} Bb4 {[%emt 0:00:11]} 7. Bd3 {[%emt 0:01:24]} d5 {[%emt 0:01:32]} 8. exd5 {[%emt 0:20:12]} e4 {[%emt 0:05:28]} 9. O-O {[%emt 0:00:24]} Bxc3 {[%emt 0:01:43]} 10. bxc3 {[%emt 0:00:08]} O-O {[%emt 0:00:20]} 11. Bxe4 {[%emt 0:01:07]} Nxe4 {[%emt 0:00:13]} 12. c4 {[%emt 0:01:03]} b5 {[%emt 0:09:26]} 13. Qd4 {[%emt 0:02:47]} Nf6 {[%emt 0:00:47]} 14. cxb5 {[%emt 0:00:30]} Qxd5 {[%emt 0:06:55]} 15. Qxd5 {[%emt 0:01:02]} Nxd5 {[%emt 0:00:03]} 16. c4 {[%emt 0:00:07]} Nf6 {[%emt 0:04:55]} 17. a4 {[%emt 0:01:08]} Be6 {[%emt 0:01:21]} 18. Nd2 {[%emt 0:02:42]} Nbd7 {[%emt 0:02:28]} 19. Ba3 {[%emt 0:00:45]} Rfc8 {[%emt 0:01:19]} 20. Rfc1 {[%emt 0:01:01]} axb5 {[%emt 0:03:18]} 21. cxb5 {[%emt 0:01:14]} Nb6 {[%emt 0:03:35]} 22. Rxc8+ {[%emt 0:00:46]} Bxc8 {[%emt 0:00:10]} 23. Bc5 {[%emt 0:02:25]} Nxa4 {[%emt 0:01:56]} 24. Bd4 {[%emt 0:01:12]} Nd5 {[%emt 0:02:06]} 25. Nc4 {[%emt 0:00:58]} Bd7 {[%emt 0:01:51]} 26. Nd6 {[%emt 0:02:16]} Nc7 {[%emt 0:11:22]} 27. Rb1 {[%emt 0:01:52]} Ne6 {[%emt 0:00:12]} 28. Be3 {[%emt 0:00:58]} Nc3 {[%emt 0:00:21]} 29. Re1 {[%emt 0:01:17]} Nxb5 {[%emt 0:00:19]} 30. Nxb5 {[%emt 0:00:07]} Bxb5 {[%emt 0:00:05]} 31. Rb1 {[%emt 0:00:14]} Bc6 {[%emt 0:01:23]} 32. h3 {[%emt 0:00:06]} Nc7 {[%emt 0:01:13]} 33. Rc1 {[%emt 0:00:23]} Ra6 {[%emt 0:00:04]} 34. Bf4 {[%emt 0:00:27]} Nd5 {[%emt 0:00:16]} 35. Be5 {[%emt 0:00:10]} f6 {[%emt 0:00:08]} 36. Bd4 {[%emt 0:00:04]} Nf4 {[%emt 0:00:11]} 0-1

[Event "10th Sharjah Cup Women 2020"]
[Site "Sharjah"]
[Date "2020.01.11"]
[Round "8.17"]
[White "Al-Hammadi, Maryam Hussein"]
[Black "Soyunlu, Narmin"]
[Result "0-1"]
[ECO "C60"]
[WhiteElo "1387"]
[BlackElo "2020"]
[Annotator "NA"]
[PlyCount "64"]
[EventDate "2020.01.04"]
[EventType "swiss"]
[EventCountry "UAE"]
[SourceTitle "playchess.com"]
[Source "ChessBase"]
[SourceQuality "1"]
[TimeControl "5400+30"]

1. e4 e5 2. Nf3 Nc6 3. Bb5 Nge7 4. d3 g6 5. Bg5 Bg7 6. Nc3 h6 7. Be3 Nd4 8. Bc4 O-O 9. Qd2 Kh7 10. O-O-O {[#]} c6 $1 11. Ne1 $2 (11. Bxd4 $17 {was worth a try.} exd4 12. Ne2) 11... d5 $19 12. exd5 cxd5 13. Bb5 a6 14. Ba4 b5 15. Bb3 Nxb3+ 16. axb3 d4 17. Ne4 dxe3 18. Qxe3 a5 19. Qf3 Be6 20. Nc3 a4 21. bxa4 b4 22. Nb1 Rxa4 23. Kd2 Ra2 24. Ke2 Rxb2 25. Kf1 Nf5 26. Rc1 Nd4 27. Qd1 Qf6 28. f3 Ra8 29. Nd2 Raa2 30. Ne4 Qh4 31. h3 f5 32. Nf2 b3 0-1

[Event "10th Sharjah Cup Women 2020"]
[Site "Sharjah"]
[Date "2020.01.11"]
[Round "8.18"]
[White "Boshra, Alshaeby"]
[Black "Rayan, Mohammad Ali Hassan"]
[Result "1-0"]
[ECO "C42"]
[WhiteElo "1979"]
[BlackElo "1473"]
[Annotator "NA"]
[PlyCount "41"]
[EventDate "2020.01.04"]
[EventType "swiss"]
[EventCountry "UAE"]
[SourceTitle "playchess.com"]
[Source "ChessBase"]
[SourceQuality "1"]
[TimeControl "5400+30"]

1. e4 {[%emt 0:00:00]} e5 {[%emt 0:00:00]} 2. Nf3 {[%emt 0:00:00]} Nf6 {[%emt 0:00:00]} 3. d3 {[%emt 0:01:30]} Nc6 {[%emt 0:01:42]} 4. g3 {[%emt 0:00:22]} Bc5 {[%emt 0:00:44]} 5. Bg2 {[%emt 0:00:10]} d6 {[%emt 0:00:20]} 6. O-O {[%emt 0:00:11]} h6 {[%emt 0:00:56]} 7. c3 {[%emt 0:00:36]} Bg4 {[%emt 0:01:31]} 8. h3 {[%emt 0:00:05]} Bh5 {[%emt 0:03:28]} 9. a4 {[%emt 0:00:15]} a5 {[%emt 0:02:29]} 10. Na3 {[%emt 0:00:05]} O-O {[%emt 0:19:40]} 11. Nc2 {[%emt 0:01:01]} Ba7 {[%emt 0:02:01]} 12. Be3 {[%emt 0:00:19]} d5 {[%emt 0:08:18]} 13. Bxa7 {[%emt 0:00:19]} Rxa7 {[%emt 0:01:19]} 14. Qe2 Re8 {[%emt 0:01:52]} 15. g4 {[%emt 0:15:22]} Bg6 {[%emt 0:06:19]} 16. Nh4 {[%emt 0:02:40]} dxe4 {[%emt 0:03:08]} 17. dxe4 {[%emt 0:00:04]} Bxe4 {[%emt 0:01:06]} 18. Rad1 {[%emt 0:00:35]} Bd5 {[%emt 0:17:13]} 19. Nf5 {[%emt 0:02:34]} Re6 {[%emt 0:15:01]} 20. Bxd5 {[%emt 0:11:58]} Nxd5 {[%emt 0:00:04]} 21. Qe4 {[%emt 0:00:40]} 1-0

[Event "10th Sharjah Cup Women 2020"]
[Site "Sharjah"]
[Date "2020.01.11"]
[Round "8.19"]
[White "Kaushika Sridharan"]
[Black "Dhyana Patel"]
[Result "0-1"]
[ECO "A45"]
[WhiteElo "1205"]
[BlackElo "1969"]
[Annotator "NA"]
[PlyCount "106"]
[EventDate "2020.01.04"]
[EventType "swiss"]
[EventCountry "UAE"]
[SourceTitle "playchess.com"]
[Source "ChessBase"]
[SourceQuality "1"]
[TimeControl "5400+30"]

1. d4 {[%emt 0:37:10]} Nf6 {[%emt 0:00:00]} 2. Bf4 {[%emt 0:00:20]} g6 {[%emt 0:00:00]} 3. e3 {[%emt 0:00:24]} Bg7 {[%emt 0:00:00]} 4. Nf3 {[%emt 0:00:55]} d6 {[%emt 0:00:08]} 5. c4 {[%emt 0:00:58]} O-O {[%emt 0:00:13]} 6. Nc3 {[%emt 0:01:12]} Nbd7 {[%emt 0:03:00]} 7. Be2 {[%emt 0:03:06]} b6 {[%emt 0:02:20]} 8. h3 {[%emt 0:02:01]} Bb7 {[%emt 0:00:03]} 9. O-O {[%emt 0:03:29]} a6 {[%emt 0:04:08]} 10. Rc1 {[%emt 0:05:52]} Qe8 {[%emt 0:00:18]} 11. Bh2 {[%emt 0:04:54]} e5 {[%emt 0:02:08]} 12. d5 {[%emt 0:02:03]} Qe7 {[%emt 0:02:50]} 13. e4 {[%emt 0:04:11]} Bh6 {[%emt 0:01:14]} 14. Ra1 {[%emt 0:03:44]} Bc8 {[%emt 0:00:55]} 15. Bd3 {[%emt 0:03:48]} Nh5 {[%emt 0:01:08]} 16. Bc2 {[%emt 0:04:19]} Ng7 {[%emt 0:00:58]} 17. Re1 {[%emt 0:02:36]} Nf6 {[%emt 0:03:01]} 18. Ba4 {[%emt 0:02:33]} Nfe8 {[%emt 0:01:11]} 19. Bc6 {[%emt 0:01:43]} Rb8 {[%emt 0:00:13]} 20. a4 {[%emt 0:02:21]} f5 {[%emt 0:01:17]} 21. b3 {[%emt 0:02:06]} Qf7 {[%emt 0:02:07]} 22. Qc2 {[%emt 0:02:41]} Nf6 {[%emt 0:02:17]} 23. Rad1 {[%emt 0:03:04]} fxe4 {[%emt 0:00:06]} 24. Nxe4 {[%emt 0:01:31]} Bf5 {[%emt 0:01:31]} 25. Nxf6+ {[%emt 0:00:17]} Qxf6 {[%emt 0:00:01]} 26. Qe2 {[%emt 0:00:42]} g5 {[%emt 0:05:16]} 27. Nd2 {[%emt 0:02:16]} Bg6 {[%emt 0:00:56]} 28. Bg3 {[%emt 0:00:32]} Nf5 {[%emt 0:00:46]} 29. Ne4 {[%emt 0:00:50]} Qf7 {[%emt 0:00:04]} 30. Qg4 {[%emt 0:01:29]} Bh5 {[%emt 0:01:21]} 31. Nxg5 {[%emt 0:01:17]} Qg6 {[%emt 0:00:42]} 32. Qe4 {[%emt 0:00:42]} Qxg5 {[%emt 0:01:43]} 33. Rd3 {[%emt 0:00:15]} Bg6 {[%emt 0:00:18]} 34. Qe2 {[%emt 0:00:39]} Qf6 {[%emt 0:00:50]} 35. Rdd1 {[%emt 0:00:24]} Nxg3 {[%emt 0:01:10]} 36. fxg3 {[%emt 0:00:10]} Qg5 {[%emt 0:00:02]} 37. Bd7 {[%emt 0:00:27]} Qxg3 {[%emt 0:00:23]} 38. Be6+ {[%emt 0:00:33]} Kg7 {[%emt 0:00:13]} 39. Rf1 {[%emt 0:00:24]} Qe3+ {[%emt 0:00:05]} 40. Qxe3 {[%emt 0:00:21]} Bxe3+ {[%emt 0:00:02]} 41. Kh1 {[%emt 0:00:17]} Rxf1+ {[%emt 0:00:03]} 42. Rxf1 {[%emt 0:00:16]} Rf8 {[%emt 0:00:03]} 43. Rxf8 {[%emt 0:00:14]} Kxf8 {[%emt 0:00:01]} 44. Kh2 {[%emt 0:00:22]} Bc2 {[%emt 0:00:05]} 45. b4 {[%emt 0:00:47]} Bxa4 {[%emt 0:00:05]} 46. Kg3 {[%emt 0:00:22]} Bd2 {[%emt 0:00:09]} 47. b5 {[%emt 0:00:17]} axb5 {[%emt 0:00:04]} 48. cxb5 {[%emt 0:00:21]} Bxb5 {[%emt 0:00:06]} 49. Kf2 {[%emt 0:00:14]} e4 {[%emt 0:00:03]} 50. Bf5 {[%emt 0:00:32]} e3+ {[%emt 0:00:05]} 51. Kf3 {[%emt 0:00:21]} e2 {[%emt 0:00:03]} 52. Kg3 {[%emt 0:00:13]} e1=Q+ {[%emt 0:00:06]} 53. Kg4 {[%emt 0:00:13]} Be2# {[%emt 0:00:05]} 0-1